Workbook

Sheet Feuil1
A1: Date | B1: KM
A2: 2021-07-31 | B2: 11 | C2: =SUM($B$2:B2) -> 11
A3: 2021-08-02 | B3: 38 | C3: =SUM($B$2:B3) -> 49 | E3: <----------- | F3: Changement de mois repartir à 0
A4: 2021-08-03 | B4: 8 | C4: =SUM($B$2:B4) -> 57
A5: 2021-08-03 | B5: 9 | C5: =SUM($B$2:B5) -> 66
A6: 2021-08-27 | B6: 4 | C6: =SUM($B$2:B6) -> 70
A7: 2021-08-27 | B7: 40 | C7: =SUM($B$2:B7) -> 110
A8: 2021-08-30 | B8: 9 | C8: =SUM($B$2:B8) -> 119
A9: 2021-08-30 | B9: 48 | C9: =SUM($B$2:B9) -> 167
A10: 2021-08-30 | B10: 3 | C10: =SUM($B$2:B10) -> 170
A11: 2021-08-31 | B11: 22 | C11: =SUM($B$2:B11) -> 192
A12: 2021-09-01 | B12: 3 | C12: =SUM($B$2:B12) -> 195 | E12: <----------- | F12: Changement de mois repartir à 0
A13: 2021-09-01 | B13: 36 | C13: =SUM($B$2:B13) -> 231
A14: 2021-09-01 | B14: 45 | C14: =SUM($B$2:B14) -> 276
A15: 2021-09-02 | B15: 8 | C15: =SUM($B$2:B15) -> 284
A16: 2021-09-03 | B16: 46 | C16: =SUM($B$2:B16) -> 330
A17: 2021-09-22 | B17: 26 | C17: =SUM($B$2:B17) -> 356
A18: 2021-09-23 | B18: 3 | C18: =SUM($B$2:B18) -> 359
A19: 2021-09-25 | B19: 26 | C19: =SUM($B$2:B19) -> 385
A20: 2021-09-25 | B20: 20 | C20: =SUM($B$2:B20) -> 405
A21: 2021-09-29 | B21: 24 | C21: =SUM($B$2:B21) -> 429
A22: 2021-09-29 | B22: 48 | C22: =SUM($B$2:B22) -> 477
A23: 2021-09-30 | B23: 3 | C23: =SUM($B$2:B23) -> 480
A24: 2021-09-30 | B24: 40 | C24: =SUM($B$2:B24) -> 520
A25: 2021-10-01 | B25: 24 | C25: =SUM($B$2:B25) -> 544 | E25: <----------- | F25: Changement de mois repartir à 0
A26: 2021-10-01 | B26: 3 | C26: =SUM($B$2:B26) -> 547
A27: 2021-10-01 | B27: 48 | C27: =SUM($B$2:B27) -> 595
A28: 2021-10-02 | B28: 14 | C28: =SUM($B$2:B28) -> 609
